bitfinex/quotes_SOLUSD_20220302
["timestamp","ask_amount","ask_price","bid_price","bid_amount"]
[1646229661823,14.8191,101.29,101.2,159.67038709]
[1646229662022,1.25,101.31,101.2,174.73858709]
[1646229662223,1.25,101.31,101.22,157.2]
[1646229662422,1.25,101.31,101.24,157.2]
[1646229662624,47.61353189,101.31,101.24,157.45]
[1646229662822,47.61353189,101.31,101.24,98.31]
[1646229663022,47.61353189,101.31,101.24,0.25]
[1646229663223,47.61353189,101.31,101.22,0.25]
[1646229664124,47.61353189,101.31,101.21,84.1897]
[1646229664824,47.61353189,101.31,101.21,88.1397]
[1646229665025,14.8183,101.29,101.21,88.1397]
[1646229665223,46.91884474,101.28,101.21,28.9997]
[1646229665623,46.91884474,101.28,101.21,28.7497]
[1646229666025,46.91884474,101.28,101.21,24.7997]
[1646229666228,61.73864474,101.28,101.21,24.7997]
[1646229667427,61.73864474,101.28,101.21,122.8597]
[1646229667628,61.73864474,101.28,101.21,24.7997]
[1646229667828,46.91884474,101.28,101.21,83.9397]
[1646229668027,46.91884474,101.28,101.21,84.1897]
[1646229668228,46.91884474,101.28,101.22,98.06]
[1646229668430,14.8175,101.3,101.22,0.25]
[1646229668833,1.25,101.31,101.23,61.39769175]
[1646229669030,1.25,101.31,101.23,61.64769175]
[1646229669431,46.03142324,101.3,101.23,159.70769175]
[1646229671534,46.03142324,101.3,101.23,2.50769175]
[1646229671730,46.03142324,101.3,101.23,0.25]
[1646229671929,46.03142324,101.3,101.22,53.7739]
[1646229672129,46.03142324,101.3,101.22,67.29961928]
[1646229672331,46.03142324,101.3,101.22,71.24961928]
[1646229672530,46.03142324,101.3,101.22,69.2639]
[1646229672729,46.03142324,101.3,101.23,159.0965118]
[1646229672932,46.03142324,101.3,101.23,159.3465118]
[1646229673229,46.03142324,101.3,101.23,0.25]
[1646229673830,46.03142324,101.3,101.23,157.45]
[1646229674231,1.25,101.31,101.23,176.80035437]
[1646229674430,1.25,101.31,101.23,188.34035437]
[1646229674631,1.25,101.31,101.25,159.27049564]
[1646229674831,1.25,101.31,101.25,159.52049564]
[1646229675832,1.25,101.31,101.25,174.33059564]
[1646229676032,1.25,101.31,101.27,157.2]
[1646229676233,1.25,101.35,101.27,159.60385464]
[1646229676433,1.25,101.35,101.29,159.40816804]
[1646229676635,1.25,101.35,101.29,166.93616804]
[1646229677132,1.25,101.35,101.29,192.96374775]
[1646229677333,1.25,101.4,101.29,192.96374775]
[1646229677535,1.25,101.4,101.31,159.15532111]
[1646229677740,1.25,101.4,101.33,159.28230598]
[1646229677941,1.25,101.4,101.33,159.53230598]
[1646229678141,1.25,101.4,101.34,163.2]
[1646229678338,1.25,101.4,101.34,163.45]
[1646229679544,1.25,101.45,101.36,157.2]
[1646229679745,1.25,101.45,101.38,157.2]
[1646229679945,1.25,101.45,101.38,157.45]
[1646229680145,1.25,101.45,101.39,163.2]
[1646229680345,1.25,101.45,101.39,104.31]
[1646229680346,48.52451054,101.45,101.39,104.31]
[1646229680546,1.25,101.45,101.39,2.79904003]
[1646229680745,1.25,101.45,101.4,6.0]
[1646229680946,1.25,101.45,101.4,6.25]
[1646229681147,1.25,101.45,101.4,17.79]
[1646229681347,1.25,101.45,101.4,0.25]
[1646229681549,56.98106753,101.44,101.39,6.0]
[1646229681753,56.98106753,101.44,101.38,3.943]
[1646229681948,56.98106753,101.44,101.36,35.6716]
[1646229682949,71.77766753,101.44,101.36,50.4663]
[1646229683349,71.77766753,101.44,101.36,38.9263]
[1646229683549,56.98106753,101.44,101.36,24.1316]
[1646229683951,1.25,101.45,101.36,94.8116]
[1646229684152,1.25,101.45,101.37,9.944]
[1646229684753,1.25,101.45,101.37,6.25]
[1646229684953,58.62548805,101.45,101.37,6.25]
[1646229686055,0.00516215,101.46,101.38,89.90098082]
[1646229686257,0.00516215,101.46,101.39,6.0]
[1646229686456,0.00516215,101.46,101.4,11.54]
[1646229686657,0.00516215,101.46,101.42,5.0]
[1646229686856,46.82326944,101.49,101.4,11.79]
[1646229687056,0.75516215,101.5,101.4,11.79]
[1646229687655,0.75516215,101.5,101.41,106.34541919]
[1646229687855,0.75516215,101.5,101.43,98.06]
[1646229688071,0.75516215,101.5,101.44,17.54]
[1646229688277,0.75516215,101.5,101.44,17.79]
[1646229688473,0.75516215,101.5,101.44,19.85504655]
[1646229688973,0.75516215,101.5,101.44,17.79]
[1646229689175,0.75516215,101.5,101.44,11.79]
[1646229689773,44.10819979,101.49,101.44,11.79]
[1646229689974,0.75516215,101.5,101.44,11.79]
[1646229690474,0.75516215,101.5,101.44,26.5267]
[1646229691075,49.01887827,101.5,101.44,183.7267]
[1646229691275,0.75516215,101.5,101.44,183.7267]
[1646229692777,0.75516215,101.5,101.45,65.14]
[1646229692978,45.71774248,101.49,101.45,6.25]
[1646229693178,45.71774248,101.49,101.45,6.0]
[1646229693377,45.71774248,101.49,101.41,48.71689696]
[1646229693578,45.71774248,101.49,101.43,11.54]
[1646229693780,45.71774248,101.49,101.42,17.54]
[1646229693977,45.71774248,101.49,101.42,76.68]
[1646229694178,45.71774248,101.49,101.42,94.01394003]
[1646229694382,45.71774248,101.49,101.43,157.2]
[1646229694580,0.75516215,101.5,101.43,168.74]
[1646229695178,0.75516215,101.5,101.43,168.99]
[1646229695379,0.75516215,101.5,101.43,70.93]
[1646229695579,51.40307091,101.49,101.43,85.7138]
[1646229696079,51.40307091,101.49,101.43,26.5738]
[1646229696279,51.40307091,101.49,101.43,124.6338]
[1646229696783,0.75516215,101.5,101.43,124.6338]
[1646229696983,0.75516215,101.5,101.43,26.5738]
[1646229697180,0.75516215,101.5,101.43,183.5238]
[1646229697381,0.75516215,101.5,101.43,11.54]
[1646229697781,42.73355157,101.49,101.43,11.54]
[1646229698386,0.75516215,101.5,101.43,168.74]
[1646229698582,0.75516215,101.5,101.45,59.14]
[1646229698882,0.75516215,101.5,101.44,17.54]
[1646229699485,0.75516215,101.5,101.44,11.79]
[1646229700884,0.75516215,101.5,101.44,168.99]
[1646229701286,0.75516215,101.5,101.44,185.82687481]
[1646229702287,0.75516215,101.5,101.46,59.14]
[1646229702486,0.75516215,101.5,101.47,6.0]
[1646229702690,0.75516215,101.5,101.48,3.03219997]
[1646229702887,0.75516215,101.5,101.48,3.28219997]
[1646229703689,0.75516215,101.5,101.48,3.03219997]
[1646229704087,0.75516215,101.5,101.43,23.1407]
[1646229704287,48.26374883,101.49,101.4,49.855]
[1646229704589,48.26374883,101.49,101.4,38.315]
[1646229704788,48.26374883,101.49,101.4,108.995]
[1646229704989,0.75516215,101.5,101.41,195.9727]
[1646229705189,0.75516215,101.5,101.43,157.2]
[1646229705589,0.75516215,101.5,101.45,157.2]
[1646229705791,0.75516215,101.5,101.45,157.45]
[1646229706392,0.75516215,101.5,101.46,14.7809]
[1646229706591,0.75516215,101.5,101.46,15.0309]
[1646229708893,0.75516215,101.5,101.46,172.2309]
[1646229709293,0.00516215,101.5,101.46,186.31994003]
[1646229709492,0.00516215,101.5,101.46,188.46976017]
[1646229709695,0.00516215,101.5,101.48,157.2]
[1646229709896,0.00516215,101.5,101.49,76.94829997]
[1646229710093,0.00516215,101.5,101.49,175.25829997]
[1646229710493,0.00516215,101.5,101.49,77.19829997]
[1646229710693,0.00516215,101.5,101.49,175.25829997]
[1646229711392,0.00516215,101.5,101.49,186.79829997]
[1646229711596,0.00516215,101.5,101.49,195.34734]
[1646229711793,0.00516215,101.5,101.49,199.28734]
[1646229712197,0.00516215,101.5,101.49,41.83734]
[1646229712398,0.00516215,101.5,101.49,33.28829997]
[1646229712597,0.00516215,101.5,101.49,39.28829997]
[1646229712999,0.00516215,101.5,101.49,35.34829997]
[1646229713299,0.00516215,101.5,101.49,186.54829997]
[1646229713498,0.00516215,101.5,101.49,192.54829997]
[1646229713699,0.00516215,101.5,101.49,192.79829997]
[1646229714298,0.00516215,101.5,101.49,196.73829997]
[1646229714503,1.25,101.6,101.49,201.28851741]
[1646229714800,1.25,101.6,101.51,174.20912749]
[1646229715002,1.25,101.6,101.53,157.2]
[1646229715199,1.25,101.6,101.53,11.79]
[1646229715401,51.80657615,101.59,101.53,11.54]
[1646229715601,51.80657615,101.59,101.52,3.938]
[1646229717210,51.80657615,101.59,101.52,4.188]
[1646229717411,51.80657615,101.59,101.52,3.938]
[1646229717810,14.7761,101.58,101.52,3.938]
[1646229718015,45.89295241,101.57,101.48,11.54]
[1646229718213,45.89295241,101.57,101.46,35.245]
[1646229718410,45.89295241,101.57,101.46,192.445]
[1646229719215,45.89295241,101.57,101.46,35.245]
[1646229719414,45.89295241,101.57,101.47,61.68904003]
[1646229719625,45.89295241,101.57,101.47,73.47904003]
[1646229720416,45.89295241,101.57,101.47,11.79]
[1646229720615,45.89295241,101.57,101.47,70.93]
[1646229720818,45.89295241,101.57,101.47,11.54]
[1646229721020,45.89295241,101.57,101.46,47.3054]
[1646229721416,56.09059698,101.54,101.46,47.3054]
[1646229722329,56.09059698,101.54,101.45,17.32934003]
[1646229722330,14.7833,101.53,101.45,2.54904003]
[1646229722529,12.80595785,101.58,101.44,22.7099]
[1646229722530,49.05083649,101.52,101.44,22.7099]
[1646229722929,46.55083649,101.52,101.44,22.7099]
[1646229723931,46.55083649,101.52,101.44,180.1599]
[1646229724231,46.55083649,101.52,101.44,194.9426]
[1646229725333,61.33553649,101.52,101.44,22.9599]
[1646229725532,61.33553649,101.52,101.44,22.7099]
[1646229725733,46.55083649,101.52,101.44,22.7099]
[1646229726634,14.7877,101.5,101.44,22.7099]
[1646229726834,14.7877,101.5,101.42,24.227]
[1646229727133,57.06313514,101.49,101.42,24.227]
[1646229727341,57.06313514,101.49,101.4,38.6395]
[1646229728036,71.85223514,101.49,101.4,38.6395]
[1646229728333,57.06313514,101.49,101.39,23.0512]
[1646229728934,57.06313514,101.49,101.38,24.3821]
[1646229729133,57.06313514,101.49,101.37,14.7559]
[1646229729335,14.795,101.45,101.36,17.34244003]
[1646229729536,46.80614895,101.44,101.35,74.2113]
[1646229729737,46.80614895,101.44,101.34,26.26974003]
[1646229730541,14.798,101.43,101.34,198.26634003]
[1646229730737,48.57517463,101.42,101.34,198.26634003]
[1646229730938,48.57517463,101.42,101.35,2.54904003]
[1646229731740,14.7965,101.44,101.35,174.54524003]
[1646229731942,64.7986,101.48,101.35,174.79524003]
[1646229732139,53.2586,101.48,101.36,2.54904003]
[1646229732341,49.3146,101.48,101.36,2.79904003]
[1646229732839,14.7944,101.46,101.37,73.9341]
[1646229733044,57.35609134,101.45,101.37,74.1841]
[1646229733441,57.35609134,101.45,101.37,172.2441]
[1646229733644,57.35609134,101.45,101.37,177.14181375]
[1646229733843,61.9128,101.49,101.4,14.789]
[1646229734042,14.789,101.49,101.4,15.039]
[1646229734342,22.5843,101.52,101.4,172.239]
[1646229734642,58.79636505,101.51,101.4,174.78804003]
[1646229734846,58.79636505,101.51,101.41,168.74]
[1646229735044,73.58346505,101.51,101.41,168.99]
[1646229735244,14.7871,101.51,101.42,2.54904003]
[1646229735447,3.942,101.55,101.43,157.2]
[1646229735651,3.942,101.55,101.43,157.45]
[1646229735846,5.23596857,101.56,101.43,159.99904003]
[1646229736248,14.7838,101.54,101.43,159.99904003]
[1646229736449,43.97070269,101.53,101.45,73.9228]
[1646229736650,43.97070269,101.53,101.45,74.1728]
[1646229736857,43.97070269,101.53,101.46,2.54904003]
[1646229737059,43.97070269,101.53,101.46,2.79904003]
[1646229737658,43.97070269,101.53,101.46,61.93904003]
[1646229737858,43.97070269,101.53,101.46,0.25]
[1646229738057,43.97070269,101.53,101.46,14.78]
[1646229738260,43.97070269,101.53,101.46,15.03]
[1646229738662,47.9205,101.57,101.46,174.77904003]
[1646229738863,47.9205,101.57,101.46,17.57904003]
[1646229739064,47.9205,101.57,101.47,3.94]
[1646229739262,47.9205,101.57,101.47,4.19]
[1646229739465,1.29596857,101.59,101.48,157.2]
[1646229739665,5.19,101.6,101.49,167.139]
[1646229739666,1.25,101.6,101.49,167.139]
[1646229739866,1.25,101.6,101.49,181.47804003]
[1646229740065,1.25,101.6,101.5,2.54904003]
[1646229740265,1.25,101.6,101.51,180.90409914]
[1646229740466,1.25,101.6,101.53,157.2]
[1646229740665,1.25,101.6,101.55,59.14]
[1646229740867,1.25,101.6,101.56,65.14]
[1646229741081,1.25,101.6,101.56,6.25]
[1646229741270,1.25,101.6,101.56,0.25]
[1646229741469,1.25,101.6,101.56,6.25]
[1646229741666,1.25,101.6,101.57,6.0]
[1646229741867,1.25,101.6,101.58,3.03219997]
[1646229742067,1.25,101.6,101.58,3.28219997]
[1646229742870,55.32943654,101.6,101.58,0.25]
[1646229743073,55.32943654,101.6,101.54,157.4621]
[1646229743574,1.25,101.6,101.54,216.6021]
[1646229743774,1.25,101.6,101.54,215.21514003]
[1646229743972,1.25,101.6,101.54,226.75514003]
[1646229744173,1.25,101.61,101.54,226.75514003]
[1646229744372,1.25,101.61,101.56,157.2]
[1646229744574,1.25,101.61,101.56,157.45]
[1646229744775,1.25,101.63,101.57,2.54904003]
[1646229744974,1.25,101.66,101.58,14.7599]
[1646229745177,1.25,101.66,101.59,6.0]
[1646229745380,1.25,101.66,101.59,8.79904003]
[1646229746377,1.25,101.66,101.6,2.54904003]
[1646229746578,1.25,101.71,101.64,14.7522]
[1646229746777,1.25,101.71,101.65,17.54]
[1646229746976,1.25,101.71,101.65,17.79]
[1646229747177,1.25,101.71,101.65,20.33904003]
[1646229748378,46.87205487,101.71,101.66,14.7494]
[1646229748682,46.87205487,101.71,101.66,14.9994]
[1646229748879,1.25,101.71,101.66,0.25]
[1646229749578,1.25,101.71,101.65,6.0]
[1646229749779,1.25,101.71,101.62,46.1932]
[1646229749980,48.59411282,101.7,101.62,46.1932]
[1646229750380,48.59411282,101.7,101.61,35.996]
[1646229750780,65.59000426,101.7,101.61,11.54]
[1646229750981,48.59411282,101.7,101.61,11.54]
[1646229751580,50.82840426,101.7,101.61,11.54]
[1646229751882,60.08416423,101.68,101.56,38.2867]
[1646229752080,64.02016423,101.68,101.56,23.5223]
[1646229752283,73.85845567,101.68,101.56,23.5223]
[1646229752481,26.01295059,101.67,101.56,23.5223]
[1646229752685,53.97667873,101.66,101.54,3.936]
[1646229752982,53.97667873,101.66,101.54,20.96781559]
[1646229753182,53.97667873,101.66,101.55,78.65372386]
[1646229753381,53.97667873,101.66,101.57,159.63116525]
[1646229753582,1.25,101.71,101.58,180.63181421]
[1646229753786,1.25,101.71,101.58,82.57181421]
[1646229753984,1.25,101.71,101.58,23.68181421]
[1646229754382,14.7607,101.7,101.58,26.547]
[1646229754583,43.50395164,101.69,101.58,26.547]
[1646229754984,43.50395164,101.69,101.59,98.06]
[1646229755185,43.50395164,101.69,101.59,157.45]
[1646229755385,43.50395164,101.69,101.59,180.36904003]
[1646229755684,1.25,101.71,101.61,157.2]
[1646229755885,1.25,101.71,101.62,171.9551]
[1646229756087,1.25,101.71,101.64,157.2]
[1646229756287,1.25,101.71,101.64,157.45]
[1646229756485,1.25,101.71,101.64,171.08345025]
[1646229756686,1.25,101.71,101.65,2.54904003]
[1646229756886,1.25,101.71,101.66,157.2]
[1646229757086,1.25,101.71,101.66,157.45]
[1646229757487,1.25,101.71,101.66,0.25]
[1646229758089,61.36040775,101.71,101.65,157.2]
[1646229758289,1.25,101.71,101.65,157.45]
[1646229758490,1.25,101.71,101.65,159.65268119]
[1646229758996,1.25,101.71,101.65,188.49332122]
[1646229759194,1.25,101.71,101.67,157.2]
[1646229759397,1.25,101.71,101.67,157.45]
[1646229759997,1.25,101.71,101.67,4.182]
[1646229760198,1.25,101.71,101.67,0.25]
[1646229760597,1.25,101.71,101.65,11.79]
[1646229760797,1.25,101.71,101.65,0.25]
[1646229760999,60.5238682,101.71,101.65,3.932]
[1646229761197,60.5238682,101.71,101.65,4.182]
[1646229761600,60.5238682,101.71,101.65,3.932]
[1646229761798,60.5238682,101.71,101.61,23.3782]
[1646229762900,75.2823682,101.71,101.61,195.3359]
[1646229763111,75.2823682,101.71,101.61,38.1359]
[1646229763314,75.2823682,101.71,101.61,23.3782]
[1646229764518,75.2823682,101.71,101.62,59.14]
[1646229764713,75.2823682,101.71,101.61,23.3782]
[1646229765013,60.5238682,101.71,101.61,52.47554003]
[1646229765213,60.5238682,101.71,101.62,98.06]
[1646229765414,60.5238682,101.71,101.62,112.0821809]
[1646229765614,60.5238682,101.71,101.64,157.2]
[1646229765816,1.25,101.71,101.64,163.763]
[1646229766014,1.25,101.71,101.65,2.54904003]
[1646229766214,0.233999,101.71,101.65,2.79904003]
[1646229767114,52.20089315,101.73,101.65,2.79904003]
[1646229768117,52.20089315,101.73,101.65,17.55174003]
[1646229768717,52.20089315,101.73,101.65,76.69174003]
[1646229768921,52.20089315,101.73,101.65,174.75174003]
[1646229769324,2.5,101.74,101.66,2.54904003]
[1646229769518,2.5,101.74,101.68,14.7487]
[1646229769720,2.5,101.74,101.68,74.1387]
[1646229769918,2.5,101.74,101.68,14.9987]
[1646229770319,54.95757322,101.73,101.66,2.54904003]
[1646229770819,54.95757322,101.73,101.64,75.1615]
[1646229770820,54.95757322,101.73,101.64,2.54904003]
[1646229771023,54.95757322,101.73,101.62,97.31334003]
[1646229771219,54.95757322,101.73,101.62,94.7643]
[1646229771426,54.95757322,101.73,101.62,45.5848]
[1646229771621,69.71247322,101.73,101.62,45.5848]
[1646229771821,69.71247322,101.73,101.62,104.7248]
[1646229772021,69.71247322,101.73,101.62,107.27384003]
[1646229772221,69.71247322,101.73,101.62,60.3423]
[1646229772821,71.94676466,101.73,101.58,2.54904003]
[1646229773022,0.22470754,101.72,101.58,2.54904003]
[1646229773322,56.80912065,101.7,101.56,47.6659]
[1646229773522,68.34912065,101.7,101.56,59.2059]
[1646229773723,70.58341209,101.7,101.56,174.41934003]
[1646229774027,53.44780553,101.68,101.56,248.32464003]
[1646229774424,55.68209697,101.68,101.56,233.72024003]
[1646229774824,53.44780553,101.68,101.56,233.72024003]
[1646229775026,14.7648,101.66,101.56,233.72024003]
[1646229775326,49.2159,101.69,101.56,233.72024003]
[1646229775327,59.34406849,101.65,101.56,235.67679023]
[1646229775727,3.935,101.71,101.56,256.95594131]
[1646229775926,0.22470754,101.72,101.6,157.2]
[1646229776125,14.7594,101.7,101.6,59.39]
[1646229776325,14.7594,101.7,101.6,61.93904003]
[1646229776837,47.28883195,101.69,101.6,73.47904003]
[1646229777025,47.28883195,101.69,101.61,14.7588]
[1646229777426,62.04903195,101.69,101.6,2.54904003]
[1646229777627,62.04903195,101.69,101.58,2.54904003]
[1646229778227,62.04903195,101.69,101.59,59.14]
[1646229778429,62.04903195,101.69,101.59,157.2]
[1646229778628,62.04903195,101.69,101.59,159.74904003]
[1646229778827,62.04903195,101.69,101.59,176.68979384]
[1646229779228,62.04903195,101.69,101.59,188.34906261]
[1646229779528,47.28883195,101.69,101.59,188.34906261]
[1646229780828,47.28883195,101.69,101.59,17.55964003]
[1646229781729,47.28883195,101.69,101.6,157.2]
[1646229781930,47.28883195,101.69,101.63,157.2]
[1646229782131,53.1275,101.73,101.63,157.2]
[1646229782132,6.434,101.74,101.63,157.45]
[1646229782333,2.5,101.74,101.64,2.54904003]
[1646229782532,2.5,101.74,101.64,2.79904003]
[1646229783131,51.47416765,101.73,101.64,2.79904003]
[1646229783331,51.47416765,101.73,101.64,17.55324003]
[1646229783531,51.47416765,101.73,101.65,159.74904003]
[1646229783733,51.47416765,101.73,101.65,159.99904003]
[1646229783932,51.47416765,101.73,101.66,2.54904003]
[1646229784135,51.47416765,101.73,101.66,2.79904003]
[1646229784332,51.47416765,101.73,101.66,0.25]
[1646229784532,66.22856765,101.73,101.65,14.7526]
[1646229784733,66.22856765,101.73,101.65,15.0026]
[1646229784932,66.22856765,101.73,101.65,14.7526]
[1646229785134,66.22856765,101.73,101.62,14.08904003]
[1646229785333,68.47651996,101.73,101.62,11.54]
[1646229785635,68.47651996,101.73,101.59,111.23874003]
[1646229785834,11.54,101.72,101.59,108.6897]
[1646229786035,55.21822856,101.71,101.59,97.1497]
[1646229786233,55.21822856,101.71,101.59,195.2097]
[1646229786434,55.21822856,101.71,101.59,254.3497]
[1646229786636,55.21822856,101.71,101.59,268.190919]
[1646229787034,55.21822856,101.71,101.59,268.440919]
[1646229787235,55.21822856,101.71,101.59,270.98995903]
[1646229787633,69.97652856,101.71,101.59,270.98995903]
[1646229787833,55.21822856,101.71,101.63,98.06]
[1646229788034,55.21822856,101.71,101.63,171.00799949]
[1646229788234,55.21822856,101.71,101.64,2.54904003]
[1646229788448,55.21822856,101.71,101.64,2.79904003]
[1646229789835,55.21822856,101.71,101.64,2.54904003]
[1646229790038,55.21822856,101.71,101.61,2.54904003]
[1646229790643,55.21822856,101.71,101.59,47.954]
[1646229791140,55.21822856,101.71,101.59,146.014]
[1646229791741,55.21822856,101.71,101.59,207.95304003]
[1646229791943,69.97642856,101.71,101.59,257.99161269]
[1646229792240,69.97642856,101.71,101.6,3.935]
[1646229792441,69.97642856,101.71,101.61,168.74]
[1646229792645,69.97642856,101.71,101.61,168.99]
[1646229793040,69.97642856,101.71,101.61,171.31276796]
[1646229793743,69.97642856,101.71,101.61,176.31276796]
[1646229794142,69.97642856,101.71,101.63,14.756]
[1646229794341,69.97642856,101.71,101.63,15.006]
[1646229794942,69.97642856,101.71,101.63,14.756]
[1646229795342,69.97642856,101.71,101.6,3.935]
[1646229795744,14.7616,101.68,101.59,24.9351]
[1646229795945,54.64116317,101.67,101.59,24.9351]
[1646229796143,54.64116317,101.67,101.59,182.1351]
[1646229796344,54.64116317,101.67,101.59,53.78554003]
[1646229796544,54.64116317,101.67,101.6,3.935]
[1646229796945,54.64116317,101.67,101.6,4.185]
[1646229798145,54.64116317,101.67,101.61,14.7594]
[1646229798344,54.64116317,101.67,101.61,15.0094]
[1646229802249,54.64116317,101.67,101.6,3.935]
[1646229802446,54.64116317,101.67,101.56,49.2095]
[1646229802647,54.64116317,101.67,101.55,37.6376]
[1646229803949,54.64116317,101.67,101.55,37.8876]
[1646229804149,53.90366996,101.64,101.56,14.7656]
[1646229804350,53.90366996,101.64,101.56,15.0156]
[1646229804754,53.90366996,101.64,101.56,14.7656]
[1646229805951,53.90366996,101.64,101.57,157.2]
[1646229806151,53.90366996,101.64,101.58,14.7616]
[1646229806351,53.90366996,101.64,101.58,15.0116]
[1646229807553,53.90366996,101.64,101.58,14.5116]
[1646229807953,86.03716857,101.71,101.58,182.04737841]
[1646229808154,82.10116857,101.71,101.58,228.03327841]
[1646229808354,8.69960973,101.7,101.58,228.03327841]
[1646229808953,42.71057887,101.69,101.58,228.03327841]
[1646229809353,42.71057887,101.69,101.58,68.7475]
[1646229809554,42.71057887,101.69,101.58,225.9475]
[1646229809753,42.71057887,101.69,101.58,127.8875]
[1646229809959,42.71057887,101.69,101.58,142.863]
[1646229810555,42.71057887,101.69,101.58,83.723]
[1646229810754,42.71057887,101.69,101.58,68.7475]
[1646229810954,60.02772741,101.67,101.58,60.4975]
[1646229811155,60.02772741,101.67,101.56,14.7657]
[1646229811354,62.27575718,101.67,101.56,15.0157]
[1646229811554,62.27575718,101.67,101.56,14.7657]
[1646229812956,62.27575718,101.67,101.56,15.0157]
[1646229813157,55.03676079,101.65,101.56,15.0157]
[1646229813557,55.03676079,101.65,101.56,74.1557]
[1646229813756,55.03676079,101.65,101.56,76.09110171]
[1646229813956,55.03676079,101.65,101.56,16.95110171]
[1646229814156,55.03676079,101.65,101.56,15.0157]
[1646229816261,55.03676079,101.65,101.55,23.1721]
[1646229816458,55.03676079,101.65,101.55,23.4221]
[1646229817257,55.03676079,101.65,101.56,2.54904003]
[1646229817460,86.74842977,101.69,101.56,2.79904003]
[1646229817659,86.74842977,101.69,101.56,27.05104003]
[1646229817857,23.7412,101.69,101.57,2.54904003]
[1646229818056,23.7412,101.69,101.57,2.79904003]
[1646229818556,49.96845682,101.68,101.57,0.25]
[1646229818758,47.31386444,101.66,101.58,14.763]
[1646229818958,47.31386444,101.66,101.58,15.013]
[1646229819959,47.31386444,101.66,101.58,172.213]
[1646229820166,23.7412,101.69,101.58,176.88740359]
[1646229820360,64.9092,101.71,101.58,224.64370359]
[1646229820567,60.9732,101.71,101.58,224.64370359]
[1646229821164,48.35115806,101.7,101.58,224.64370359]
[1646229821870,48.35115806,101.7,101.58,236.18370359]
[1646229822071,14.7606,101.71,101.58,236.18370359]
[1646229822272,28.60394016,101.73,101.6,159.53138772]
[1646229822471,28.60394016,101.73,101.63,14.7538]
[1646229822673,30.6417,101.74,101.63,180.2548]
[1646229822872,6.435,101.74,101.63,185.06576769]
[1646229823078,49.19696319,101.74,101.65,157.2]
[1646229823274,49.19696319,101.74,101.65,159.3597053]
[1646229823478,49.19696319,101.74,101.67,14.7496]
[1646229823677,49.19696319,101.74,101.67,14.9996]
[1646229825279,2.5,101.74,101.67,14.9996]
[1646229825479,2.5,101.74,101.67,172.1996]
[1646229825677,2.5,101.74,101.67,174.46092925]
[1646229826076,2.5,101.74,101.67,189.08692925]
[1646229827586,46.13513843,101.73,101.67,31.88692925]
[1646229827790,46.13513843,101.73,101.67,14.9996]
[1646229828988,46.13513843,101.73,101.65,14.7526]
[1646229829188,46.13513843,101.73,101.66,6.0]
[1646229830393,46.13513843,101.73,101.65,14.7526]
[1646229830592,46.13513843,101.73,101.63,29.4449]
[1646229831294,60.89053843,101.73,101.63,29.4449]
[1646229832898,46.13513843,101.73,101.63,189.19394003]
[1646229833092,46.13513843,101.73,101.63,191.48940011]
[1646229833295,46.13513843,101.73,101.63,231.51196029]
[1646229834096,46.13513843,101.73,101.63,243.30196029]
[1646229835295,46.13513843,101.73,101.63,223.77156921]
[1646229835896,46.13513843,101.73,101.63,45.82940011]
[1646229836095,46.13513843,101.73,101.63,14.7554]
[1646229837096,60.89043843,101.73,101.63,74.1454]
[1646229837297,60.89043843,101.73,101.63,76.141763]
[1646229837696,46.13513843,101.73,101.63,174.201763]
[1646229837897,46.13513843,101.73,101.63,176.75080303]
[1646229838896,46.13513843,101.73,101.63,228.31336321]
[1646229839097,46.13513843,101.73,101.65,159.33986228]
[1646229839298,46.13513843,101.73,101.66,14.751]
[1646229839497,46.13513843,101.73,101.66,17.55004003]
[1646229840102,2.5,101.74,101.66,17.55004003]
[1646229840299,2.5,101.74,101.67,2.54904003]
[1646229840499,2.5,101.74,101.68,14.7486]